bitfinex/quotes_BTCUSD_20250825
["timestamp","ask_amount","ask_price","bid_price","bid_amount"]
[1756156324249,0.2000024,109840.0,109830.0,0.44343856]
[1756156324250,0.01262938,109840.0,109830.0,0.44343856]
[1756156324453,0.18206723,109850.0,109830.0,0.4418696]
[1756156324694,0.18206723,109850.0,109840.0,0.00113471]
[1756156324900,0.18206723,109850.0,109840.0,0.18321773]
[1756156325124,0.18206645,109850.0,109840.0,0.18409302]
[1756156325336,0.18204988,109860.0,109850.0,0.18206645]
[1756156325545,0.01279417,109870.0,109860.0,0.18204988]
[1756156325746,0.01288158,109870.0,109860.0,0.18405988]
[1756156325975,8.741e-05,109870.0,109860.0,0.18405988]
[1756156326616,0.19636778,109870.0,109860.0,0.18405988]
[1756156326829,0.20897399,109870.0,109860.0,0.18405988]
[1756156327046,0.02694068,109870.0,109860.0,0.36561988]
[1756156327259,0.01433447,109870.0,109860.0,0.37161988]
[1756156327480,8.741e-05,109870.0,109860.0,0.37161988]
[1756156327709,8.741e-05,109870.0,109860.0,0.45850463]
[1756156328155,8.741e-05,109870.0,109860.0,0.27694463]
[1756156328386,8.741e-05,109870.0,109860.0,0.45842463]
[1756156328605,8.741e-05,109870.0,109860.0,0.27694463]
[1756156328827,8.741e-05,109870.0,109860.0,0.19005988]
[1756156329051,8.741e-05,109870.0,109860.0,0.18405988]
[1756156329262,8.741e-05,109870.0,109860.0,0.37153988]
[1756156329693,8.741e-05,109870.0,109860.0,0.36853988]
[1756156329876,0.18212072,109870.0,109860.0,0.36648988]
[1756156330136,0.18212072,109870.0,109860.0,0.36348988]
[1756156330349,0.18212072,109870.0,109860.0,0.36549988]
[1756156330546,0.18212072,109870.0,109860.0,0.18405988]
[1756156330748,0.18212072,109870.0,109860.0,0.1814]
[1756156330952,0.18212072,109870.0,109860.0,0.40434544]
[1756156331160,0.18741072,109870.0,109860.0,0.04089556]
[1756156331361,0.18741072,109870.0,109860.0,0.22225556]
[1756156331562,0.18741072,109870.0,109860.0,0.18136]
[1756156332386,0.18427072,109870.0,109860.0,0.36340988]
[1756156332595,8.741e-05,109870.0,109860.0,0.36541988]
[1756156333010,8.741e-05,109870.0,109860.0,0.36841988]
[1756156333215,0.00208741,109870.0,109860.0,0.36841988]
[1756156333744,0.18212072,109870.0,109860.0,0.18204988]
[1756156333944,0.18741072,109870.0,109860.0,0.18128]
[1756156334147,0.18741072,109870.0,109860.0,0.36332988]
[1756156334369,8.741e-05,109870.0,109860.0,0.18405988]
[1756156334571,8.741e-05,109870.0,109860.0,0.36533988]
[1756156334785,0.18427072,109870.0,109860.0,0.36328988]
[1756156334992,0.18427072,109870.0,109860.0,0.18204988]
[1756156335152,0.18427072,109870.0,109860.0,0.36328988]
[1756156335554,0.18204988,109860.0,109850.0,0.22240022]
[1756156335748,0.18733988,109860.0,109850.0,0.04033377]
[1756156336059,0.18733988,109860.0,109850.0,0.1812]
[1756156336873,0.18733988,109860.0,109850.0,0.001]
[1756156337098,0.18733988,109860.0,109850.0,0.1822]
[1756156337337,0.18733988,109860.0,109850.0,0.001]
[1756156337549,0.23183566,109860.0,109850.0,0.001]
[1756156337740,0.28048457,109860.0,109850.0,0.001]
[1756156337904,0.29473501,109860.0,109850.0,0.001]
[1756156338509,0.18206645,109850.0,109840.0,0.18116]
[1756156338710,0.18735645,109850.0,109840.0,0.18116]
[1756156338934,0.18208302,109840.0,109830.0,0.07008]
[1756156339133,0.18737302,109840.0,109830.0,0.25124]
[1756156339694,0.18211619,109820.0,109810.0,0.04174699]
[1756156339899,0.20059384,109820.0,109810.0,0.18108001]
[1756156340107,0.19530384,109820.0,109810.0,0.18108001]
[1756156340516,0.19530384,109820.0,109810.0,0.36522278]
[1756156340723,0.19530384,109820.0,109810.0,0.18108001]
[1756156340946,0.19530384,109820.0,109810.0,1e-08]
[1756156341149,0.19754118,109820.0,109810.0,1e-08]
[1756156341403,0.20068118,109820.0,109810.0,0.18104001]
[1756156341715,0.20068118,109820.0,109810.0,1e-08]
[1756156341918,0.19539118,109820.0,109810.0,0.18104001]
[1756156342534,0.19754118,109820.0,109810.0,0.18104001]
[1756156343351,0.19539118,109820.0,109810.0,0.36518278]
[1756156343555,0.01327499,109820.0,109810.0,0.36818278]
[1756156343769,0.19539118,109820.0,109810.0,0.36818278]
[1756156343964,0.19539118,109820.0,109810.0,0.18404001]
[1756156344156,0.19539118,109820.0,109810.0,0.18104001]
[1756156344373,0.19539118,109820.0,109810.0,1e-08]
[1756156344374,0.19754118,109820.0,109810.0,1e-08]
[1756156344576,0.20068118,109820.0,109810.0,1e-08]
[1756156344729,0.20068118,109820.0,109810.0,0.18096001]
[1756156345535,0.20068118,109820.0,109810.0,0.18496001]
[1756156345777,0.23896073,109820.0,109810.0,0.00400001]
[1756156345939,0.23896073,109820.0,109810.0,0.18496001]
[1756156346137,0.20068118,109820.0,109810.0,0.18496001]
[1756156346989,0.20068118,109820.0,109810.0,0.18092001]
[1756156347351,0.20068118,109820.0,109810.0,0.18492001]
[1756156348367,0.20068118,109820.0,109810.0,0.18488001]
[1756156349969,0.20068118,109820.0,109810.0,0.18088001]
[1756156350371,0.20068118,109820.0,109810.0,0.18288001]
[1756156350587,0.25704873,109820.0,109810.0,0.18288001]
[1756156350803,0.20068118,109820.0,109810.0,0.18288001]
[1756156351590,0.2181302,109820.0,109810.0,0.00200001]
[1756156351900,0.23238479,109820.0,109810.0,0.00200001]
[1756156352704,0.23238479,109820.0,109810.0,1e-08]
[1756156353350,0.21493577,109820.0,109810.0,1e-08]
[1756156353559,0.21179577,109820.0,109810.0,0.00100001]
[1756156353770,0.21487577,109820.0,109810.0,0.00100001]
[1756156353944,0.20062118,109820.0,109810.0,0.00100001]
[1756156354565,0.19539118,109820.0,109810.0,0.00299001]
[1756156354699,0.01327499,109820.0,109810.0,0.18923883]
[1756156354930,0.01327499,109820.0,109810.0,0.18810278]
[1756156355140,8.734e-05,109820.0,109810.0,0.18810278]
[1756156356232,8.734e-05,109820.0,109810.0,0.18710278]
[1756156356666,8.734e-05,109820.0,109810.0,0.19110278]
[1756156357499,8.734e-05,109820.0,109810.0,0.27798753]
[1756156357925,8.734e-05,109820.0,109810.0,0.36774278]
[1756156358127,8.734e-05,109820.0,109810.0,0.37374278]
[1756156358345,8.734e-05,109820.0,109810.0,0.18412278]
[1756156358557,8.734e-05,109820.0,109810.0,0.36774278]
[1756156358768,8.734e-05,109820.0,109810.0,0.37474278]
[1756156359018,8.734e-05,109820.0,109810.0,0.36774278]
[1756156359440,8.734e-05,109820.0,109810.0,0.37374278]
[1756156360023,8.734e-05,109820.0,109810.0,0.46062753]
[1756156360222,8.734e-05,109820.0,109810.0,0.85462753]
[1756156360410,8.734e-05,109820.0,109810.0,0.67398753]
[1756156360760,8.734e-05,109820.0,109810.0,0.36762278]
[1756156361098,8.734e-05,109820.0,109810.0,0.18412278]
[1756156361552,0.18430353,109820.0,109810.0,0.36265278]
[1756156361758,0.18738353,109820.0,109810.0,0.18052001]
[1756156361982,0.18738353,109820.0,109810.0,0.36765278]
[1756156362194,0.18738353,109820.0,109810.0,0.40360798]
[1756156362404,0.18220353,109820.0,109810.0,0.40559798]
[1756156362606,0.18220353,109820.0,109810.0,0.40960798]
[1756156362808,0.18220353,109820.0,109810.0,0.40360798]
[1756156363224,0.18220353,109820.0,109810.0,0.40560798]
[1756156363651,8.734e-05,109820.0,109810.0,0.40759798]
[1756156364102,8.734e-05,109820.0,109810.0,0.41057798]
[1756156364337,8.734e-05,109820.0,109810.0,0.40857798]
[1756156364768,8.734e-05,109820.0,109810.0,0.41145798]
[1756156365210,8.734e-05,109820.0,109810.0,0.41645798]
[1756156365415,8.734e-05,109820.0,109810.0,0.23605798]
[1756156365621,8.734e-05,109820.0,109810.0,0.41343798]
[1756156365826,0.18220353,109820.0,109810.0,0.23108798]
[1756156366068,8.734e-05,109820.0,109810.0,0.41144798]
[1756156366334,0.18738353,109820.0,109810.0,0.22931521]
[1756156366552,0.18738353,109820.0,109810.0,0.04895521]
[1756156366762,0.23301036,109820.0,109810.0,0.18832001]
[1756156367175,0.18738353,109820.0,109810.0,0.18832001]
[1756156367633,0.18738353,109820.0,109810.0,0.18032001]
[1756156368055,0.18738353,109820.0,109810.0,0.18232001]
[1756156368262,0.18738353,109820.0,109810.0,0.18032001]
[1756156368463,0.18738353,109820.0,109810.0,0.18028001]
[1756156368706,0.18738353,109820.0,109810.0,0.18228001]
[1756156369092,0.18738353,109820.0,109810.0,0.00200001]
[1756156369299,0.22607171,109820.0,109810.0,0.00200001]
[1756156369505,0.22607171,109820.0,109810.0,0.18224001]
[1756156369669,0.22607171,109820.0,109810.0,0.00200001]
[1756156369877,0.22607171,109820.0,109810.0,0.18224001]
[1756156370090,0.24908712,109820.0,109810.0,0.00200001]
[1756156370296,0.24908302,109820.0,109810.0,0.00200001]
[1756156370494,0.23234864,109820.0,109810.0,0.00200001]
[1756156371407,0.23234864,109820.0,109810.0,1e-08]
[1756156371808,0.23434864,109820.0,109810.0,1e-08]
[1756156372034,0.23234864,109820.0,109810.0,1e-08]
[1756156372403,0.20683255,109820.0,109810.0,1e-08]
[1756156375172,0.18420353,109820.0,109810.0,0.00199001]
[1756156375386,0.18630353,109820.0,109810.0,0.00199001]
[1756156375579,0.18736353,109820.0,109810.0,1e-08]
[1756156375894,0.18320353,109820.0,109810.0,1e-08]
[1756156376331,0.19645874,109820.0,109810.0,1e-08]
[1756156376472,0.19645874,109820.0,109810.0,0.00399001]
[1756156376675,0.19645874,109820.0,109810.0,0.19025883]
[1756156376874,0.19645874,109820.0,109810.0,0.00399001]
[1756156377299,0.01434255,109820.0,109810.0,0.19025883]
[1756156377509,0.19645874,109820.0,109810.0,0.18912278]
[1756156378710,0.19645874,109820.0,109810.0,0.00399001]
[1756156378890,0.19850874,109820.0,109810.0,0.18204001]
[1756156379321,0.19645874,109820.0,109810.0,0.18403001]
[1756156379529,0.19645874,109820.0,109810.0,0.36616278]
[1756156379856,0.01434255,109820.0,109810.0,0.36916278]
[1756156380062,0.19645874,109820.0,109810.0,0.36916278]
[1756156380287,0.01434255,109820.0,109810.0,0.36616278]
[1756156380554,0.01434255,109820.0,109810.0,0.36916278]
[1756156380756,0.19113497,109870.0,109850.0,0.18206326]
[1756156380972,0.182061,109860.0,109840.0,0.26123875]
[1756156381176,0.19042669,109860.0,109850.0,0.00312419]
[1756156381381,0.18206645,109850.0,109840.0,0.07008]
[1756156381773,0.18411645,109850.0,109840.0,0.24996]
[1756156382201,0.18411645,109850.0,109840.0,0.25096]
[1756156382404,0.18206645,109850.0,109840.0,0.25096]
[1756156382614,0.182061,109860.0,109840.0,0.43803302]
[1756156382801,0.18206645,109850.0,109840.0,0.43503302]
[1756156383418,0.18206645,109850.0,109840.0,0.43703302]
[1756156383823,0.18411645,109850.0,109840.0,0.07308]
[1756156384014,0.18717645,109850.0,109840.0,0.25288]
[1756156384633,0.18717645,109850.0,109840.0,0.07008]
[1756156385045,0.18717645,109850.0,109840.0,0.24884]
[1756156385906,0.18717645,109850.0,109840.0,0.25083]
[1756156385907,0.18206645,109850.0,109840.0,0.25083]
[1756156386107,0.18206645,109850.0,109840.0,0.06908]
[1756156386310,0.18717645,109850.0,109840.0,0.2488]
[1756156386505,0.18817645,109850.0,109840.0,0.2488]
[1756156386714,0.18306645,109850.0,109840.0,0.2488]
[1756156386918,0.001,109850.0,109840.0,0.43287302]
[1756156387335,0.001,109850.0,109840.0,0.43587302]
[1756156387740,0.18205027,109860.0,109850.0,0.18206645]
[1756156387943,0.01424818,109860.0,109850.0,0.18405645]
[1756156388080,0.01424818,109860.0,109850.0,0.18705645]
[1756156388293,0.01424818,109860.0,109850.0,0.18405645]
[1756156388544,0.19629806,109860.0,109850.0,0.18405645]
[1756156388939,0.19426263,109870.0,109850.0,0.18405645]
[1756156389142,0.19426263,109870.0,109860.0,0.36282355]
[1756156389339,0.19426263,109870.0,109860.0,0.36168988]
[1756156389583,0.19426263,109870.0,109860.0,0.17964]
[1756156389795,0.19426263,109870.0,109860.0,0.36168988]
[1756156389953,0.19426263,109870.0,109860.0,0.17964]
[1756156390353,0.19631263,109870.0,109860.0,0.17964]
[1756156390567,0.18204988,109860.0,109850.0,0.003]
[1756156390760,0.18204988,109860.0,109850.0,0.36162645]
[1756156390997,0.18204988,109860.0,109850.0,0.00199]
[1756156391200,0.18206645,109850.0,109840.0,0.25116302]
[1756156391403,0.18206645,109850.0,109840.0,0.06908]
[1756156391606,0.18206645,109850.0,109840.0,0.2486]
[1756156391803,0.22389408,109850.0,109840.0,0.2486]
[1756156392068,0.22389408,109850.0,109840.0,0.06908]
[1756156392244,0.22389408,109850.0,109840.0,0.2486]
[1756156392392,0.22389408,109850.0,109840.0,0.06908]
[1756156392593,0.22389408,109850.0,109840.0,0.17948]
[1756156392826,0.1820996,109830.0,109820.0,0.003]
[1756156393017,0.22056934,109830.0,109820.0,0.18248]
[1756156393218,0.1872096,109830.0,109820.0,0.18248]
[1756156394010,0.1872096,109830.0,109820.0,0.18244]
[1756156394196,0.18725759,109830.0,109820.0,0.18244]
[1756156394420,0.18419759,109830.0,109820.0,0.18244]
[1756156394828,0.18725759,109830.0,109820.0,0.18244]
[1756156395638,0.22419313,109830.0,109820.0,0.18344]
[1756156395840,0.22419313,109830.0,109820.0,0.003]
[1756156396018,0.22419313,109830.0,109820.0,0.1824]
[1756156396406,0.24164215,109830.0,109820.0,0.18236]
[1756156397193,0.20470661,109830.0,109820.0,0.18236]
[1756156398051,0.20670661,109830.0,109820.0,0.003]
[1756156398259,0.20670661,109830.0,109820.0,0.18236]
[1756156398463,0.20870661,109830.0,109820.0,0.18236]
[1756156398816,0.19125759,109830.0,109820.0,0.18236]
[1756156399038,0.19125759,109830.0,109820.0,0.003]
[1756156399267,0.22459313,109830.0,109820.0,0.18228]
[1756156399469,0.18925759,109830.0,109820.0,0.18228]
[1756156399694,0.18925759,109830.0,109820.0,0.003]
[1756156399849,0.20670661,109830.0,109820.0,0.18228]
[1756156400961,0.20470661,109830.0,109820.0,0.18228]
[1756156401167,0.20470661,109830.0,109820.0,0.003]
[1756156401365,0.24338705,109830.0,109820.0,0.003]
[1756156401569,0.24338705,109830.0,109810.0,1e-08]
[1756156401570,0.19956521,109820.0,109810.0,1e-08]
[1756156401752,0.20467521,109820.0,109810.0,1e-08]
[1756156404203,0.20567521,109820.0,109810.0,1e-08]
[1756156404895,0.38479521,109820.0,109810.0,1e-08]
[1756156405094,0.46935753,109820.0,109810.0,1e-08]
[1756156405424,0.47135753,109820.0,109810.0,1e-08]
[1756156405635,0.45230779,109820.0,109810.0,1e-08]
[1756156405802,0.36474547,109820.0,109810.0,1e-08]
[1756156407219,0.51474547,109820.0,109810.0,1e-08]
[1756156407558,0.53219449,109820.0,109810.0,1e-08]
[1756156407670,0.53319449,109820.0,109810.0,1e-08]
[1756156408136,0.53219449,109820.0,109810.0,1e-08]
[1756156408313,0.61749674,109820.0,109810.0,1e-08]
[1756156408512,0.63175456,109820.0,109810.0,1e-08]
[1756156408902,0.63475456,109820.0,109810.0,1e-08]
[1756156409720,0.37033231,109820.0,109810.0,1e-08]
[1756156410031,0.54937231,109820.0,109810.0,1e-08]
[1756156410715,0.54629231,109820.0,109810.0,1e-08]
[1756156410911,0.39629231,109820.0,109810.0,1e-08]
[1756156411560,0.40029231,109820.0,109810.0,1e-08]
[1756156411753,0.48716196,109820.0,109810.0,1e-08]
[1756156412113,0.22333231,109820.0,109810.0,1e-08]
[1756156412304,0.38480329,109820.0,109810.0,1e-08]
[1756156413398,0.38170329,109820.0,109810.0,1e-08]
[1756156413806,0.37570329,109820.0,109810.0,1e-08]
[1756156414013,0.37770329,109820.0,109810.0,1e-08]
[1756156414215,0.25511838,109820.0,109810.0,1e-08]
[1756156414370,0.37880329,109820.0,109810.0,1e-08]
[1756156414571,0.38080329,109820.0,109810.0,1e-08]
[1756156414971,0.39825231,109820.0,109810.0,1e-08]
[1756156418706,0.21627231,109820.0,109810.0,0.00197001]
[1756156418933,0.39499231,109820.0,109810.0,0.00197001]
[1756156419099,0.39499231,109820.0,109810.0,1e-08]
[1756156419537,0.4561163,109820.0,109810.0,1e-08]
[1756156419698,0.34938249,109820.0,109810.0,1e-08]
[1756156421669,0.36683151,109820.0,109810.0,1e-08]
[1756156422321,0.30880752,109820.0,109810.0,1e-08]
[1756156424118,0.40880752,109820.0,109810.0,1e-08]
[1756156424592,0.55880752,109820.0,109810.0,1e-08]
[1756156425026,0.59276453,109820.0,109810.0,1e-08]
[1756156426320,5.62310753,109820.0,109810.0,1e-08]
[1756156426529,5.70997718,109820.0,109810.0,1e-08]
[1756156427323,5.72423644,109820.0,109810.0,1e-08]
[1756156427973,0.68135148,109820.0,109810.0,1e-08]
[1756156428404,0.40295148,109820.0,109810.0,1e-08]
[1756156428860,0.53131148,109820.0,109810.0,1e-08]
[1756156429077,0.68131148,109820.0,109810.0,1e-08]
[1756156429461,0.68130342,109820.0,109810.0,1e-08]
[1756156429667,0.76764852,109820.0,109810.0,1e-08]
[1756156429870,5.82208931,109820.0,109810.0,1e-08]
[1756156430075,5.82208802,109820.0,109810.0,1e-08]
[1756156430426,5.64372802,109820.0,109810.0,1e-08]
[1756156430641,5.82200802,109820.0,109810.0,1e-08]
[1756156431274,5.82700802,109820.0,109810.0,1e-08]
[1756156431473,5.81274876,109820.0,109810.0,1e-08]
[1756156432298,5.81278876,109820.0,109810.0,1e-08]
[1756156432513,5.62946876,109820.0,109810.0,1e-08]
[1756156432731,5.80970876,109820.0,109810.0,1e-08]
[1756156433141,5.62946876,109820.0,109810.0,1e-08]
[1756156433312,5.80970876,109820.0,109810.0,1e-08]
[1756156434438,5.54512366,109820.0,109810.0,1e-08]
[1756156434641,5.69922587,109820.0,109810.0,1e-08]
[1756156434846,5.71344485,109820.0,109810.0,1e-08]
[1756156435601,5.71144485,109820.0,109810.0,1e-08]
[1756156435839,5.71244485,109820.0,109810.0,1e-08]
[1756156436061,5.7993145,109820.0,109810.0,1e-08]
[1756156436460,5.8039685,109820.0,109810.0,1e-08]
[1756156437291,5.80391124,109820.0,109810.0,1e-08]
[1756156438152,0.23595957,109820.0,109810.0,0.00519001]
[1756156438359,0.23595957,109820.0,109810.0,0.00198001]
[1756156438360,0.41399957,109820.0,109810.0,0.00198001]
[1756156438773,0.18216595,109790.0,109780.0,0.07293275]
[1756156438998,0.18216595,109790.0,109780.0,0.07491275]
[1756156439426,0.18216595,109790.0,109780.0,0.07798275]
[1756156439629,0.18216595,109790.0,109780.0,0.00545]
[1756156440068,0.18216595,109790.0,109780.0,0.00593075]
[1756156440614,0.18216595,109790.0,109780.0,0.00286075]
[1756156440853,0.18216595,109790.0,109780.0,0.00586075]
[1756156441055,0.18727595,109790.0,109780.0,1e-08]
[1756156441426,0.291518,109790.0,109780.0,1e-08]
[1756156441628,0.719438,109790.0,109780.0,1e-08]
[1756156441856,0.80630765,109790.0,109780.0,1e-08]
[1756156442073,0.18221574,109760.0,109750.0,0.0104]
[1756156442276,0.18221574,109760.0,109750.0,0.01228386]
[1756156442605,0.19590226,109760.0,109750.0,0.01054386]
[1756156442814,0.19386226,109760.0,109750.0,0.01228386]
[1756156442996,0.25079727,109760.0,109750.0,0.01228386]
[1756156443252,0.25283727,109760.0,109750.0,0.01054386]
[1756156443451,0.25079727,109760.0,109750.0,0.01228386]
[1756156443689,0.25590727,109760.0,109750.0,0.01254386]
[1756156443868,0.25386727,109760.0,109750.0,0.01054386]
[1756156444098,0.37174226,109760.0,109750.0,0.01228386]
[1756156444733,0.19386226,109760.0,109750.0,0.01228386]
[1756156445352,0.19386226,109760.0,109750.0,0.01337386]
[1756156445564,0.19386226,109760.0,109750.0,0.01228386]
[1756156445802,0.2101252,109760.0,109750.0,0.01337386]
[1756156446244,0.2081252,109760.0,109750.0,0.19674536]
[1756156446447,0.2081252,109760.0,109750.0,0.1956062]
[1756156446668,0.01426294,109760.0,109750.0,0.21305522]
[1756156447120,0.18216664,109790.0,109770.0,0.18219514]
[1756156447344,0.19127156,109800.0,109780.0,0.18615036]
[1756156447604,0.18216291,109820.0,109800.0,0.18214936]
[1756156447815,0.01316938,109800.0,109790.0,0.19961497]
[1756156448026,0.0274,109820.0,109810.0,0.26970179]
[1756156448239,0.0274,109820.0,109810.0,0.26870179]
[1756156448658,0.19126457,109840.0,109820.0,0.19955894]
[1756156448875,0.1820996,109830.0,109820.0,0.37727894]
[1756156449083,0.20324251,109840.0,109810.0,0.25125277]
[1756156449288,0.1820996,109830.0,109820.0,0.17772]
[1756156449494,0.18211619,109820.0,109810.0,0.06912]
[1756156450355,0.18722619,109820.0,109810.0,0.003]
[1756156450563,0.22415877,109820.0,109810.0,0.003]
[1756156450767,0.18722619,109820.0,109810.0,0.003]
[1756156450964,0.18722619,109820.0,109810.0,0.006]
[1756156451215,0.36490619,109820.0,109810.0,0.006]
[1756156451441,0.37916252,109820.0,109810.0,0.006]
[1756156451650,0.18216595,109790.0,109780.0,0.07012]
[1756156451851,0.18218254,109780.0,109770.0,0.1776]
[1756156452059,0.1822149,109770.0,109750.0,0.15301275]
[1756156452260,0.1822149,109770.0,109760.0,0.1776]
[1756156452381,0.18221574,109760.0,109750.0,0.34806177]
[1756156452588,0.18221574,109760.0,109750.0,0.19392056]
[1756156452797,0.18221574,109760.0,109750.0,0.12138781]
[1756156453010,0.2186588,109760.0,109750.0,0.01054386]
[1756156453199,0.2186588,109760.0,109750.0,0.01554386]
[1756156453511,0.2186588,109760.0,109750.0,0.01054386]
[1756156453512,0.18221574,109760.0,109750.0,0.01054386]
[1756156453738,0.18221574,109760.0,109750.0,0.01754386]
[1756156454119,0.18221574,109760.0,109750.0,0.01054386]
[1756156454715,0.1822149,109770.0,109750.0,0.01054386]
[1756156454910,0.18813286,109760.0,109750.0,0.01054386]
[1756156455114,0.22436052,109760.0,109750.0,0.01054386]
[1756156455533,0.22436052,109760.0,109750.0,0.01254386]
[1756156455926,0.23608771,109760.0,109750.0,0.01254386]
[1756156456131,0.23608771,109760.0,109750.0,0.01054386]
[1756156456342,0.19905293,109760.0,109750.0,0.01054386]
[1756156456542,0.20005293,109760.0,109750.0,0.01054386]
[1756156457134,0.20105293,109760.0,109750.0,0.01054386]
[1756156458553,0.19594293,109760.0,109750.0,0.01054386]
[1756156458967,0.19594293,109760.0,109750.0,0.08307661]
[1756156459183,0.23579871,109760.0,109750.0,0.01054386]
[1756156459387,0.23886871,109760.0,109750.0,0.01054386]
[1756156459601,0.19594293,109760.0,109750.0,0.01054386]
[1756156459812,0.19901293,109760.0,109750.0,0.01054386]
[1756156460018,0.19905293,109760.0,109750.0,0.01054386]
[1756156460445,0.19494293,109760.0,109750.0,0.01054386]
[1756156460650,0.19801293,109760.0,109750.0,0.01054386]
[1756156461131,0.25581171,109760.0,109750.0,0.01054386]
[1756156462208,0.20005293,109760.0,109750.0,0.01054386]
[1756156465739,0.20005293,109760.0,109750.0,0.01054386]
[1756156466106,0.19494293,109760.0,109750.0,0.01054386]
[1756156466356,0.20013293,109760.0,109750.0,0.01054386]
[1756156470376,0.20013293,109760.0,109750.0,0.00146386]
[1756156470984,0.19913293,109760.0,109750.0,0.00146386]
[1756156471445,0.20013293,109760.0,109750.0,0.00146386]
[1756156473494,0.19800293,109760.0,109750.0,0.00146386]
[1756156473727,0.20013293,109760.0,109750.0,0.00146386]
[1756156474861,0.19800293,109760.0,109750.0,0.00146386]
[1756156475089,0.19394293,109760.0,109750.0,0.00146386]
[1756156475325,0.19394293,109760.0,109750.0,0.00246386]
[1756156477259,0.19367031,109760.0,109750.0,0.00246386]
[1756156479092,0.19886031,109760.0,109750.0,0.00246386]
[1756156479312,0.21312308,109760.0,109750.0,0.00246386]
[1756156480647,0.38984308,109760.0,109750.0,0.00246386]
[1756156481637,0.38984308,109760.0,109750.0,0.00146386]
[1756156481902,0.21312308,109760.0,109750.0,0.00146386]
[1756156482127,0.21412308,109760.0,109750.0,0.00146386]
[1756156482607,0.19986031,109760.0,109750.0,0.00146386]
[1756156482860,0.22595436,109760.0,109750.0,0.00146386]
[1756156484520,0.19986031,109760.0,109750.0,0.00146386]
[1756156484932,0.37646031,109760.0,109750.0,0.00146386]
[1756156485844,0.21412428,109760.0,109750.0,0.00146386]
[1756156488389,0.21312428,109760.0,109750.0,0.00146386]
[1756156488590,0.21412428,109760.0,109750.0,0.00146386]
[1756156488881,0.21312428,109760.0,109750.0,0.00146386]
[1756156489104,0.2731514,109760.0,109750.0,0.00146386]
[1756156489311,0.2741514,109760.0,109750.0,0.00146386]
[1756156489491,0.20893428,109760.0,109750.0,0.00146386]
[1756156489742,0.20893428,109760.0,109750.0,0.00246386]
[1756156489961,0.21412428,109760.0,109750.0,0.00246386]
[1756156490586,0.20893428,109760.0,109750.0,0.00246386]
[1756156491002,0.21412428,109760.0,109750.0,0.00246386]
[1756156491218,0.2711852,109760.0,109750.0,0.00246386]
[1756156491862,0.2701852,109760.0,109750.0,0.00146386]
[1756156492074,0.2649952,109760.0,109750.0,0.00146386]
[1756156492285,0.2649952,109760.0,109750.0,0.00346386]
[1756156492484,0.19367031,109760.0,109750.0,0.00346386]
[1756156492637,0.19367031,109760.0,109750.0,0.00446386]
[1756156492859,0.19367031,109760.0,109750.0,0.00146386]
[1756156493257,0.19367031,109760.0,109750.0,0.00246386]
[1756156493486,0.19580031,109760.0,109750.0,0.00146386]
[1756156493827,0.19580031,109760.0,109750.0,0.00246386]
[1756156494065,0.19886031,109760.0,109750.0,0.00246386]
[1756156494860,0.21224801,109760.0,109750.0,0.00246386]
[1756156495014,0.21224801,109760.0,109750.0,0.00146386]
[1756156495210,0.21224801,109760.0,109750.0,0.00346386]
[1756156496439,0.22651072,109760.0,109750.0,0.00901986]
[1756156497636,0.21312302,109760.0,109750.0,0.00901986]
[1756156499794,0.21312302,109760.0,109750.0,0.00601986]
[1756156499997,0.21412302,109760.0,109750.0,0.00601986]
[1756156500560,0.20893302,109760.0,109750.0,0.00601986]
[1756156500776,0.20893302,109760.0,109750.0,0.00715902]
[1756156500990,0.20893302,109760.0,109750.0,0.00601986]
[1756156501426,0.25243581,109760.0,109750.0,0.00601986]
[1756156501669,0.20793302,109760.0,109750.0,0.00601986]
[1756156502328,0.20793302,109760.0,109750.0,0.00701986]
[1756156502543,0.19367031,109760.0,109750.0,0.00601986]
[1756156502979,0.19367031,109760.0,109750.0,0.00801986]
[1756156504013,0.19578031,109760.0,109750.0,0.00801986]
[1756156504385,0.19876031,109760.0,109750.0,0.00801986]
[1756156504588,0.23685783,109760.0,109750.0,0.00801986]
[1756156505017,0.19367031,109760.0,109750.0,0.00801986]
[1756156505232,0.19876031,109760.0,109750.0,0.00801986]
[1756156505756,0.19367031,109760.0,109750.0,0.00801986]
[1756156506346,0.19876031,109760.0,109750.0,0.00801986]
[1756156506949,0.21302273,109760.0,109750.0,0.00801986]
[1756156507172,0.27013049,109760.0,109750.0,0.00801986]
[1756156508486,0.27013049,109760.0,109750.0,0.00601986]
[1756156508656,0.27013049,109760.0,109750.0,0.00701986]
[1756156508857,0.27013049,109760.0,109750.0,0.00601986]
[1756156509211,0.27113049,109760.0,109750.0,0.00601986]
[1756156510379,0.3772343,109760.0,109750.0,0.00601986]
[1756156511056,0.38826716,109760.0,109750.0,0.00601986]
[1756156512240,0.38822716,109760.0,109750.0,0.00601986]
[1756156512465,0.21262716,109760.0,109750.0,0.00601986]
[1756156512699,0.20851102,109760.0,109750.0,0.00802986]
[1756156512964,0.1942486,109760.0,109750.0,0.00802986]
[1756156513433,0.1942486,109760.0,109750.0,0.01110986]
[1756156513659,0.1942486,109760.0,109750.0,0.1933422]
[1756156514535,0.26139098,109800.0,109790.0,0.18216595]
[1756156514536,0.18214991,109800.0,109790.0,0.18216595]
[1756156514771,0.18214936,109800.0,109790.0,0.18725595]
[1756156515233,0.19126672,109810.0,109790.0,0.20470497]
[1756156515467,0.18214936,109800.0,109790.0,0.02253902]
[1756156515693,0.19305796,109800.0,109790.0,0.02268288]
[1756156515911,0.19305796,109800.0,109790.0,0.00315386]
[1756156516379,0.19305796,109800.0,109790.0,0.18839981]
[1756156516644,0.01128879,109830.0,109810.0,0.18213277]
[1756156516851,0.19048306,109830.0,109820.0,0.00509]
[1756156517062,0.18211619,109820.0,109810.0,0.17544]
[1756156517275,0.19335032,109830.0,109810.0,0.17745]
[1756156517475,0.18211619,109820.0,109810.0,0.00201]
[1756156517903,0.18213277,109810.0,109800.0,0.37499838]
[1756156518112,0.18213277,109810.0,109800.0,0.37700838]
[1756156518335,0.18213277,109810.0,109800.0,0.19793902]
[1756156518536,0.18213277,109810.0,109800.0,0.19485902]
[1756156518766,0.18213277,109810.0,109800.0,0.17741]
[1756156518977,0.18214936,109800.0,109790.0,0.37511883]
[1756156519246,0.18214936,109800.0,109790.0,0.37712883]
[1756156519391,0.18214936,109800.0,109790.0,0.19496288]
[1756156519593,0.01425477,109820.0,109790.0,0.37712883]
[1756156519814,0.19637096,109820.0,109800.0,0.18636593]
[1756156520019,0.18213277,109810.0,109800.0,0.37795838]
[1756156520226,0.18213277,109810.0,109800.0,0.19473902]
[1756156520441,0.18213277,109810.0,109800.0,0.01945902]
[1756156520853,0.18424277,109810.0,109800.0,0.17528]
[1756156521481,0.18213277,109810.0,109800.0,0.17729]
[1756156521689,0.18213277,109810.0,109800.0,0.18029]
[1756156521896,0.18424277,109810.0,109800.0,0.17828]
[1756156522096,0.18722277,109810.0,109800.0,0.003]